[Event "Biel Master Tournament 2019"]
[Site "Biel"]
[Date "2019.07.29"]
[Round "7.3"]
[White "Puranik, Abhimanyu"]
[Black "Kamsky, Gata"]
[Result "1/2-1/2"]
[ECO "B09"]
[WhiteElo "2550"]
[BlackElo "2673"]
[Annotator "ChessBase"]
[PlyCount "73"]
[EventDate "2019.07.20"]
[EventType "swiss"]
[EventCountry "SUI"]
[SourceTitle "playchess.com"]
[Source "ChessBase"]
[SourceQuality "1"]
[TimeControl "40/5400+30:1800+30"]

1. e4 {[%emt 0:00:00]} g6 {[%emt 0:03:53]} 2. d4 {[%emt 0:00:00]} Bg7 {[%emt 0:00:05]} 3. Nc3 {[%emt 0:00:15]} d6 {[%emt 0:00:06]} 4. f4 {[%emt 0:00:41]} Nf6 {[%emt 0:02:03]} 5. Nf3 {[%emt 0:01:08]} c5 {[%emt 0:01:38]} 6. Bb5+ {[%emt 0:01:58]} Bd7 {[%emt 0:00:06]} 7. e5 {[%emt 0:00:23]} Ng4 {[%emt 0:00:06]} 8. Bxd7+ {[%emt 0:01:20]} Qxd7 {[%emt 0:00:42]} 9. d5 {[%emt 0:01:43]} dxe5 {[%emt 0:00:11]} 10. h3 {[%emt 0:00:23]} e4 {[%emt 0:00:55]} 11. hxg4 {[%emt 0:00:53]} exf3 {[%emt 0:04:03]} 12. Qxf3 {[%emt 0:00:04]} Na6 {[%emt 0:00:23]} 13. Bd2 {[%emt 0:01:15]} O-O-O {[%emt 0:01:07]} 14. O-O-O {[%emt 0:00:36]} Nb4 {[%emt 0:18:52]} 15. Ne4 {[%emt 0:01:12]} Qa4 {[%emt 0:14:23]} 16. Bxb4 {[%emt 0:01:00]} cxb4 {[%emt 0:00:10]} 17. Kb1 {[%emt 0:08:17]} Kb8 {[%emt 0:00:07]} 18. Ng5 {[%emt 0:08:45]} Rc8 {[%emt 0:14:16]} 19. Qb3 {[%emt 0:02:39]} Qxb3 {[%emt 0:00:05]} 20. axb3 {[%emt 0:00:03]} h6 {[%emt 0:00:06]} 21. Nf3 {[%emt 0:00:36]} Rhd8 {[%emt 0:02:13]} 22. Rhe1 {[%emt 0:08:30]} Rd7 {[%emt 0:01:51]} 23. Rd3 {[%emt 0:08:35]} Rc5 {[%emt 0:02:07]} 24. Red1 {[%emt 0:02:48]} Kc7 {[%emt 0:15:53]} 25. Ne5 {[%emt 0:06:05]} Bxe5 {[%emt 0:00:06]} 26. fxe5 {[%emt 0:00:03]} f6 {[%emt 0:00:53]} 27. exf6 {[%emt 0:11:12]} exf6 {[%emt 0:00:05]} 28. c4 {[%emt 0:01:39]} bxc3 {[%emt 0:00:06]} 29. bxc3 {[%emt 0:00:29]} b5 {[%emt 0:00:08]} 30. Kb2 {[%emt 0:02:02]} a5 {[%emt 0:00:54]} 31. Rd4 {[%emt 0:01:38]} Kd6 {[%emt 0:04:47]} 32. Rf1 {[%emt 0:03:02]} Rxd5 {[%emt 0:01:24]} 33. Rxf6+ {[%emt 0:00:27]} Kc5 {[%emt 0:00:13]} 34. Rxd5+ {[%emt 0:07:34]} Rxd5 {[%emt 0:00:06]} 35. Rxg6 {[%emt 0:00:31]} Rd2+ {[%emt 0:00:08]} 36. Kc1 {[%emt 0:00:11]} Rxg2 {[%emt 0:00:03]} 37. Rxh6 {[%emt 0:00:14]} 1/2-1/2

[Event "Biel Master Tournament 2019"]
[Site "Biel"]
[Date "2019.07.29"]
[Round "7.5"]
[White "Donchenko, Alexander"]
[Black "Aryan, Chopra"]
[Result "1-0"]
[ECO "A34"]
[WhiteElo "2615"]
[BlackElo "2553"]
[Annotator "ChessBase"]
[PlyCount "121"]
[EventDate "2019.07.20"]
[EventType "swiss"]
[EventCountry "SUI"]
[SourceTitle "playchess.com"]
[Source "ChessBase"]
[SourceQuality "1"]
[TimeControl "40/5400+30:1800+30"]

1. Nf3 {[%emt 0:00:00]} Nf6 {[%emt 0:00:00]} 2. c4 {[%emt 0:00:00]} c5 {[%emt 0:00:00]} 3. Nc3 {[%emt 0:02:10]} d5 {[%emt 0:00:00]} 4. cxd5 {[%emt 0:00:22]} Nxd5 {[%emt 0:00:00]} 5. g3 {[%emt 0:01:20]} Nc6 {[%emt 0:00:00]} 6. Bg2 {[%emt 0:00:45]} Nc7 {[%emt 0:00:13]} 7. d3 {[%emt 0:01:31]} e5 {[%emt 0:00:09]} 8. Be3 {[%emt 0:02:38]} Bd7 {[%emt 0:05:25]} 9. O-O {[%emt 0:13:05]} Be7 {[%emt 0:01:22]} 10. a3 {[%emt 0:01:13]} O-O {[%emt 0:02:53]} 11. Rb1 {[%emt 0:01:31]} Re8 {[%emt 0:09:36]} 12. Nd2 {[%emt 0:09:17]} Rb8 {[%emt 0:12:06]} 13. Nce4 {[%emt 0:08:35]} Ne6 {[%emt 0:07:50]} 14. b4 {[%emt 0:08:15]} cxb4 {[%emt 0:03:03]} 15. axb4 {[%emt 0:00:05]} Bxb4 {[%emt 0:11:06]} 16. Bxa7 {[%emt 0:00:44]} Ra8 {[%emt 0:01:00]} 17. Be3 {[%emt 0:01:52]} f5 {[%emt 0:02:47]} 18. Ng5 {[%emt 0:06:55]} Nxg5 {[%emt 0:01:06]} 19. Bxg5 {[%emt 0:00:04]} Qxg5 {[%emt 0:00:12]} 20. Bxc6 {[%emt 0:00:04]} Bxc6 {[%emt 0:00:17]} 21. Rxb4 {[%emt 0:00:18]} Rad8 {[%emt 0:03:20]} 22. Nc4 {[%emt 0:06:22]} Qe7 {[%emt 0:18:48]} 23. Qb3 {[%emt 0:02:48]} Kh8 {[%emt 0:02:06]} 24. Na5 {[%emt 0:04:02]} Bd5 {[%emt 0:00:54]} 25. Qb2 {[%emt 0:00:57]} e4 {[%emt 0:05:01]} 26. dxe4 {[%emt 0:03:38]} Bxe4 {[%emt 0:00:58]} 27. Nxb7 {[%emt 0:01:57]} Rd7 {[%emt 0:01:24]} 28. Na5 {[%emt 0:00:38]} h6 {[%emt 0:03:06]} 29. Nc4 {[%emt 0:04:08]} Qc5 {[%emt 0:02:52]} 30. Ne3 {[%emt 0:05:49]} Red8 {[%emt 0:05:18]} 31. Rb5 {[%emt 0:02:50]} Qa7 {[%emt 0:01:40]} 32. Qa1 {[%emt 0:02:56]} Qc7 {[%emt 0:00:51]} 33. Qc1 {[%emt 0:02:10]} Qa7 {[%emt 0:00:33]} 34. Qa1 {[%emt 0:02:31]} Qc7 {[%emt 0:00:01]} 35. Qa5 {[%emt 0:00:10]} Qxa5 {[%emt 0:00:53]} 36. Rxa5 {[%emt 0:00:02]} g6 {[%emt 0:00:28]} 37. f3 {[%emt 0:01:14]} Bb7 {[%emt 0:00:23]} 38. Kf2 {[%emt 0:00:42]} Re7 {[%emt 0:00:15]} 39. Rc1 {[%emt 0:02:02]} Rde8 {[%emt 0:00:06]} 40. Rc3 {[%emt 0:00:18]} Kg7 {[%emt 0:01:23]} 41. h4 {[%emt 0:32:52]} h5 {[%emt 0:30:06]} 42. Ra2 {[%emt 0:00:00]} Bc8 {[%emt 0:00:00]} 43. Ng2 {[%emt 0:00:00]} Be6 {[%emt 0:00:00]} 44. Rb2 {[%emt 0:00:00]} Bf7 {[%emt 0:00:00]} 45. Nf4 {[%emt 0:00:00]} Ra8 {[%emt 0:00:00]} 46. Rc6 {[%emt 0:00:00]} Ra1 {[%emt 0:00:00]} 47. Rbb6 {[%emt 0:00:00]} Ra2 {[%emt 0:00:00]} 48. Rxg6+ {[%emt 0:00:00]} Bxg6 {[%emt 0:00:00]} 49. Rxg6+ {[%emt 0:00:00]} Kf7 {[%emt 0:00:00]} 50. Rg5 {[%emt 0:00:00]} Ra5 {[%emt 0:00:00]} 51. Rxh5 {[%emt 0:00:00]} Rae5 {[%emt 0:00:00]} 52. Rh7+ {[%emt 0:00:00]} Kg8 {[%emt 0:00:00]} 53. Rh6 {[%emt 0:00:00]} Kg7 {[%emt 0:00:00]} 54. Ra6 {[%emt 0:00:00]} Re8 {[%emt 0:00:00]} 55. h5 {[%emt 0:00:00]} Rc8 {[%emt 0:00:00]} 56. Ra1 {[%emt 0:00:00]} Kh6 {[%emt 0:00:00]} 57. Ra7 {[%emt 0:00:00]} Rc6 {[%emt 0:00:00]} 58. Rf7 {[%emt 0:00:00]} Rb6 {[%emt 0:00:00]} 59. Ng6 {[%emt 0:00:00]} Ra5 {[%emt 0:00:00]} 60. Ne7 {[%emt 0:00:00]} Rbb5 {[%emt 0:03:29]} 61. f4 {[%emt 0:00:00]} 1-0

[Event "Biel Master Tournament 2019"]
[Site "Biel"]
[Date "2019.07.29"]
[Round "7.6"]
[White "Shyam, Sundar M."]
[Black "Erdos, Viktor"]
[Result "1/2-1/2"]
[ECO "C13"]
[WhiteElo "2520"]
[BlackElo "2603"]
[Annotator "ChessBase"]
[PlyCount "26"]
[EventDate "2019.07.20"]
[EventType "swiss"]
[EventCountry "SUI"]
[SourceTitle "playchess.com"]
[Source "ChessBase"]
[SourceQuality "1"]
[TimeControl "40/5400+30:1800+30"]

1. e4 {[%emt 0:01:49]} e6 {[%emt 0:01:32]} 2. d4 {[%emt 0:00:06]} d5 {[%emt 0:00:04]} 3. Nc3 {[%emt 0:00:04]} dxe4 {[%emt 0:01:32]} 4. Nxe4 {[%emt 0:00:06]} Nd7 {[%emt 0:00:24]} 5. Nf3 {[%emt 0:00:06]} Ngf6 {[%emt 0:00:04]} 6. Bg5 {[%emt 0:00:18]} Be7 {[%emt 0:06:51]} 7. Nxf6+ {[%emt 0:00:12]} Bxf6 {[%emt 0:00:04]} 8. h4 {[%emt 0:00:24]} h6 {[%emt 0:07:53]} 9. Be3 {[%emt 0:04:56]} b6 {[%emt 0:02:31]} 10. Bb5 {[%emt 0:00:41]} Bb7 {[%emt 0:01:53]} 11. Qe2 {[%emt 0:00:10]} a6 {[%emt 0:09:01]} 12. Bd3 {[%emt 0:00:47]} c5 {[%emt 0:00:10]} 13. c3 {[%emt 0:07:22]} Qc7 {[%emt 0:05:34]} 1/2-1/2

[Event "Biel Master Tournament 2019"]
[Site "Biel"]
[Date "2019.07.29"]
[Round "7.7"]
[White "Tabatabaei, M.amin"]
[Black "Shchekachev, Andrei"]
[Result "1-0"]
[ECO "B42"]
[WhiteElo "2601"]
[BlackElo "2531"]
[Annotator "ChessBase"]
[PlyCount "67"]
[EventDate "2019.07.20"]
[EventType "swiss"]
[EventCountry "SUI"]
[SourceTitle "playchess.com"]
[Source "ChessBase"]
[SourceQuality "1"]
[TimeControl "40/5400+30:1800+30"]

1. e4 {[%emt 0:00:00]} c5 {[%emt 0:01:43]} 2. Nf3 {[%emt 0:00:00]} e6 {[%emt 0:00:35]} 3. d4 {[%emt 0:00:10]} cxd4 {[%emt 0:00:14]} 4. Nxd4 {[%emt 0:00:09]} a6 {[%emt 0:09:40]} 5. Bd3 {[%emt 0:00:14]} Nf6 {[%emt 0:02:08]} 6. O-O {[%emt 0:00:11]} Qc7 {[%emt 0:00:03]} 7. Qe2 {[%emt 0:00:12]} d6 {[%emt 0:00:08]} 8. c4 {[%emt 0:00:07]} Be7 {[%emt 0:03:22]} 9. Nc3 {[%emt 0:00:13]} b6 {[%emt 0:05:15]} 10. Kh1 {[%emt 0:02:54]} O-O {[%emt 0:05:51]} 11. f4 {[%emt 0:05:52]} Nbd7 {[%emt 0:03:36]} 12. Bd2 {[%emt 0:01:11]} Re8 {[%emt 0:00:24]} 13. Rad1 {[%emt 0:00:33]} Bb7 {[%emt 0:02:25]} 14. f5 {[%emt 0:00:34]} Bd8 {[%emt 0:09:25]} 15. fxe6 {[%emt 0:13:06]} fxe6 {[%emt 0:00:20]} 16. Bc2 {[%emt 0:08:36]} Ne5 {[%emt 0:08:20]} 17. Ba4 {[%emt 0:06:23]} Nfd7 {[%emt 0:11:13]} 18. Qh5 {[%emt 0:18:03]} Bf6 {[%emt 0:00:17]} 19. Qh3 {[%emt 0:00:07]} Nc5 {[%emt 0:09:46]} 20. Bxe8 Rxe8 {[%emt 0:00:02]} 21. b3 {[%emt 0:18:04]} Qe7 {[%emt 0:03:12]} 22. Qe3 {[%emt 0:11:05]} Ng4 {[%emt 0:07:32]} 23. Qg3 {[%emt 0:00:10]} Ne5 {[%emt 0:02:58]} 24. Nf3 {[%emt 0:00:52]} Nf7 {[%emt 0:02:39]} 25. Qg4 {[%emt 0:03:28]} Bc6 {[%emt 0:03:58]} 26. Be1 {[%emt 0:04:35]} Bd7 {[%emt 0:01:30]} 27. Bh4 {[%emt 0:01:45]} b5 {[%emt 0:01:37]} 28. b4 {[%emt 0:02:44]} e5 {[%emt 0:02:17]} 29. Qg3 {[%emt 0:01:15]} Bxh4 {[%emt 0:00:16]} 30. Nxh4 {[%emt 0:00:06]} Nb7 {[%emt 0:00:59]} 31. c5 {[%emt 0:01:17]} dxc5 {[%emt 0:01:44]} 32. Nd5 {[%emt 0:00:05]} Qg5 {[%emt 0:00:07]} 33. Qf2 {[%emt 0:00:48]} Nfd6 {[%emt 0:01:16]} 34. bxc5 {[%emt 0:00:18]} 1-0

[Event "Biel Master Tournament 2019"]
[Site "Biel"]
[Date "2019.07.29"]
[Round "7.8"]
[White "Santos Latasa, Jaime"]
[Black "Gukesh D"]
[Result "1/2-1/2"]
[ECO "D37"]
[WhiteElo "2594"]
[BlackElo "2520"]
[Annotator "ChessBase"]
[PlyCount "89"]
[EventDate "2019.07.20"]
[EventType "swiss"]
[EventCountry "SUI"]
[SourceTitle "playchess.com"]
[Source "ChessBase"]
[SourceQuality "1"]
[TimeControl "40/5400+30:1800+30"]

1. d4 {[%emt 0:01:12]} d5 {[%emt 0:00:21]} 2. c4 {[%emt 0:00:06]} e6 {[%emt 0:00:25]} 3. Nc3 {[%emt 0:00:10]} a6 {[%emt 0:01:00]} 4. cxd5 {[%emt 0:00:31]} exd5 {[%emt 0:00:01]} 5. Nf3 {[%emt 0:01:50]} Nf6 {[%emt 0:05:03]} 6. Bg5 {[%emt 0:00:32]} Be6 {[%emt 0:00:07]} 7. e3 {[%emt 0:00:11]} Nbd7 {[%emt 0:00:38]} 8. Bd3 {[%emt 0:00:07]} Bd6 {[%emt 0:00:26]} 9. O-O {[%emt 0:00:41]} O-O {[%emt 0:00:07]} 10. Qc2 {[%emt 0:00:27]} h6 {[%emt 0:00:33]} 11. Bf4 {[%emt 0:00:08]} Qe7 {[%emt 0:05:44]} 12. h3 {[%emt 0:01:36]} Rac8 {[%emt 0:05:11]} 13. Rac1 {[%emt 0:03:20]} c5 {[%emt 0:04:16]} 14. Bxd6 {[%emt 0:00:29]} Qxd6 {[%emt 0:00:03]} 15. dxc5 {[%emt 0:00:10]} Nxc5 {[%emt 0:00:09]} 16. Rfd1 {[%emt 0:01:04]} Rc7 {[%emt 0:18:32]} 17. Na4 {[%emt 0:05:07]} Rfc8 {[%emt 0:00:26]} 18. Nxc5 {[%emt 0:00:25]} Qxc5 {[%emt 0:01:34]} 19. Qxc5 {[%emt 0:00:18]} Rxc5 {[%emt 0:00:02]} 20. Rxc5 {[%emt 0:00:09]} Rxc5 {[%emt 0:00:02]} 21. Nd4 {[%emt 0:00:07]} Kf8 {[%emt 0:06:06]} 22. f3 {[%emt 0:02:00]} Ke7 {[%emt 0:00:42]} 23. Kf2 {[%emt 0:00:09]} Rc7 {[%emt 0:02:26]} 24. g4 {[%emt 0:00:53]} Nd7 {[%emt 0:01:16]} 25. Ke2 {[%emt 0:00:30]} Ne5 {[%emt 0:01:09]} 26. h4 {[%emt 0:04:03]} Nc6 {[%emt 0:01:28]} 27. Nf5+ {[%emt 0:06:07]} Bxf5 {[%emt 0:14:29]} 28. Bxf5 {[%emt 0:00:23]} Kd6 {[%emt 0:02:41]} 29. f4 {[%emt 0:02:11]} d4 {[%emt 0:06:46]} 30. Be4 {[%emt 0:09:06]} Re7 {[%emt 0:01:23]} 31. Kf3 {[%emt 0:00:10]} Kc5 {[%emt 0:01:03]} 32. a3 {[%emt 0:06:36]} h5 {[%emt 0:11:40]} 33. g5 {[%emt 0:01:46]} f5 {[%emt 0:03:07]} 34. gxf6 {[%emt 0:00:12]} gxf6 {[%emt 0:00:04]} 35. Rd3 {[%emt 0:01:36]} f5 {[%emt 0:01:01]} 36. Bxc6 {[%emt 0:01:09]} dxe3 {[%emt 0:01:18]} 37. Rxe3 {[%emt 0:05:04]} Rxe3+ {[%emt 0:00:01]} 38. Kxe3 {[%emt 0:00:08]} Kxc6 {[%emt 0:00:52]} 39. Kd4 {[%emt 0:00:21]} Kd6 {[%emt 0:00:04]} 40. a4 {[%emt 0:02:12]} a5 {[%emt 0:01:21]} 41. b3 {[%emt 0:30:24]} b6 {[%emt 0:30:54]} 42. Kc4 {[%emt 0:00:16]} Kc6 {[%emt 0:00:06]} 43. b4 {[%emt 0:00:40]} axb4 {[%emt 0:00:21]} 44. Kxb4 {[%emt 0:00:06]} Kd6 {[%emt 0:00:42]} 45. Kb5 {[%emt 0:00:25] Ke5} 1/2-1/2

[Event "Biel Master Tournament 2019"]
[Site "Biel"]
[Date "2019.07.29"]
[Round "7.9"]
[White "Petrosyan, Manuel"]
[Black "Rahul Srivatshav P"]
[Result "1-0"]
[ECO "E62"]
[WhiteElo "2592"]
[BlackElo "2414"]
[Annotator "ChessBase"]
[PlyCount "93"]
[EventDate "2019.07.20"]
[EventType "swiss"]
[EventCountry "SUI"]
[SourceTitle "playchess.com"]
[Source "ChessBase"]
[SourceQuality "1"]
[TimeControl "40/5400+30:1800+30"]

1. d4 {[%emt 0:02:14]} Nf6 {[%emt 0:00:11]} 2. c4 {[%emt 0:00:10]} g6 {[%emt 0:00:08]} 3. g3 {[%emt 0:00:13]} Bg7 {[%emt 0:00:06]} 4. Bg2 {[%emt 0:00:08]} O-O {[%emt 0:00:07]} 5. Nc3 {[%emt 0:00:37]} d6 {[%emt 0:00:08]} 6. Nf3 {[%emt 0:00:14]} Nc6 {[%emt 0:00:10]} 7. O-O {[%emt 0:00:39]} e5 {[%emt 0:00:05]} 8. dxe5 {[%emt 0:01:07]} dxe5 {[%emt 0:00:09]} 9. Bg5 {[%emt 0:00:40]} Be6 {[%emt 0:00:09]} 10. Qc1 {[%emt 0:00:20]} Qc8 {[%emt 0:00:33]} 11. Rd1 {[%emt 0:03:27]} Re8 {[%emt 0:01:08]} 12. b3 {[%emt 0:14:00]} Bf5 {[%emt 0:00:15]} 13. Nd2 {[%emt 0:07:09]} h6 {[%emt 0:03:06]} 14. Bxf6 {[%emt 0:01:42]} Bxf6 {[%emt 0:00:06]} 15. Bxc6 {[%emt 0:02:50]} bxc6 {[%emt 0:02:02]} 16. Nde4 {[%emt 0:00:07]} Bg7 {[%emt 0:04:07]} 17. Qe3 {[%emt 0:00:21]} Qe6 {[%emt 0:09:41]} 18. Rd2 {[%emt 0:05:40]} Bh3 {[%emt 0:15:59]} 19. f3 {[%emt 0:13:08]} f5 {[%emt 0:06:16]} 20. Nf2 {[%emt 0:03:38]} f4 {[%emt 0:00:22]} 21. Qc5 {[%emt 0:01:01]} a5 {[%emt 0:11:30]} 22. Nxh3 {[%emt 0:08:25]} Bf8 {[%emt 0:04:22]} 23. Qf2 {[%emt 0:00:07]} Bb4 {[%emt 0:00:05]} 24. Rd3 {[%emt 0:02:49]} Bxc3 {[%emt 0:00:41]} 25. Rxc3 {[%emt 0:00:05]} Qxh3 {[%emt 0:00:05]} 26. Rd1 {[%emt 0:00:15]} a4 {[%emt 0:02:23]} 27. b4 {[%emt 0:04:14]} Rab8 {[%emt 0:02:13]} 28. a3 {[%emt 0:02:46]} c5 {[%emt 0:00:50]} 29. b5 {[%emt 0:00:12]} Red8 {[%emt 0:00:15]} 30. Rcd3 {[%emt 0:01:12]} Rxd3 {[%emt 0:11:03]} 31. Rxd3 {[%emt 0:00:13]} Rf8 {[%emt 0:00:17]} 32. gxf4 {[%emt 0:03:55]} exf4 {[%emt 0:01:46]} 33. Qxc5 {[%emt 0:00:26]} Qh4 {[%emt 0:00:09]} 34. Qd5+ {[%emt 0:00:47]} Kh7 {[%emt 0:00:37]} 35. Qe5 {[%emt 0:01:21]} Rf7 {[%emt 0:00:14]} 36. Qe6 {[%emt 0:03:22]} Qg5+ {[%emt 0:01:18]} 37. Kf1 {[%emt 0:00:46]} Rg7 {[%emt 0:00:36]} 38. Rd5 {[%emt 0:07:28]} Qh4 {[%emt 0:00:13]} 39. Kg2 {[%emt 0:00:54]} Qe1 {[%emt 0:00:15]} 40. Rd7 {[%emt 0:00:50]} h5 {[%emt 0:02:45]} 41. Rxg7+ {[%emt 0:31:41]} Kxg7 {[%emt 0:30:09]} 42. Qe5+ {[%emt 0:00:16]} Kg8 {[%emt 0:00:05]} 43. c5 {[%emt 0:04:16]} Qa5 {[%emt 0:01:06]} 44. c6 {[%emt 0:03:23]} Qb6 {[%emt 0:01:48]} 45. Kf1 {[%emt 0:01:05]} Qb8 {[%emt 0:00:52]} 46. Qxf4 {[%emt 0:01:00]} Qb6 {[%emt 0:00:06]} 47. Qxa4 {[%emt 0:01:30]} 1-0

[Event "Biel Master Tournament 2019"]
[Site "Biel"]
[Date "2019.07.29"]
[Round "7.10"]
[White "Harika, Dronavalli"]
[Black "Jumabayev, Rinat"]
[Result "1/2-1/2"]
[ECO "D85"]
[WhiteElo "2425"]
[BlackElo "2633"]
[Annotator "ChessBase"]
[PlyCount "95"]
[EventDate "2019.07.20"]
[EventType "swiss"]
[EventCountry "SUI"]
[SourceTitle "playchess.com"]
[Source "ChessBase"]
[SourceQuality "1"]
[TimeControl "40/5400+30:1800+30"]

1. d4 {[%emt 0:02:48]} Nf6 {[%emt 0:00:00]} 2. c4 {[%emt 0:00:11]} g6 {[%emt 0:00:59]} 3. Nc3 {[%emt 0:00:12]} d5 {[%emt 0:00:04]} 4. cxd5 {[%emt 0:00:32]} Nxd5 {[%emt 0:00:03]} 5. e4 {[%emt 0:00:39]} Nxc3 {[%emt 0:00:04]} 6. bxc3 {[%emt 0:00:06]} Bg7 {[%emt 0:00:02]} 7. Nf3 {[%emt 0:00:31]} c5 {[%emt 0:00:06]} 8. h3 {[%emt 0:01:07]} O-O {[%emt 0:00:32]} 9. Be2 {[%emt 0:00:11]} b6 {[%emt 0:06:10]} 10. Be3 {[%emt 0:07:11]} Bb7 {[%emt 0:09:38]} 11. Qd3 {[%emt 0:01:00]} Nd7 {[%emt 0:18:13]} 12. O-O {[%emt 0:03:01]} Nf6 {[%emt 0:00:24]} 13. d5 {[%emt 0:13:55]} e6 {[%emt 0:03:16]} 14. c4 {[%emt 0:01:22]} exd5 {[%emt 0:01:53]} 15. exd5 {[%emt 0:00:19]} Re8 {[%emt 0:00:05]} 16. Rae1 {[%emt 0:04:14]} Ne4 {[%emt 0:07:13]} 17. Bd1 {[%emt 0:11:41]} b5 {[%emt 0:07:56]} 18. Bb3 {[%emt 0:01:00]} bxc4 {[%emt 0:01:11]} 19. Bxc4 {[%emt 0:04:01]} Nd6 {[%emt 0:00:11]} 20. Rd1 {[%emt 0:10:02]} Qf6 {[%emt 0:13:48]} 21. Ba6 {[%emt 0:05:13]} c4 {[%emt 0:01:21]} 22. Qa3 {[%emt 0:02:50]} Bxa6 {[%emt 0:10:20]} 23. Qxa6 {[%emt 0:00:35]} Nf5 {[%emt 0:02:33]} 24. Qxc4 {[%emt 0:05:28]} Rxe3 {[%emt 0:00:58]} 25. fxe3 {[%emt 0:00:05]} Nxe3 {[%emt 0:00:05]} 26. Qc6 {[%emt 0:02:36]} Rd8 {[%emt 0:05:03]} 27. Qxf6 {[%emt 0:02:21]} Bxf6 {[%emt 0:00:02]} 28. Rd3 {[%emt 0:00:36]} Nxf1 {[%emt 0:00:08]} 29. Kxf1 {[%emt 0:00:04]} Kf8 {[%emt 0:02:48]} 30. Nd2 {[%emt 0:00:38]} Rc8 {[%emt 0:00:26]} 31. Ne4 {[%emt 0:04:00]} Bd8 {[%emt 0:00:29]} 32. Ke2 {[%emt 0:03:11]} Rc4 {[%emt 0:03:59]} 33. Kf3 {[%emt 0:01:38]} f5 {[%emt 0:01:26]} 34. Nd6 {[%emt 0:05:04]} Rc2 {[%emt 0:01:24]} 35. Nb7 {[%emt 0:00:27]} Ke8 {[%emt 0:04:08]} 36. d6 {[%emt 0:02:32]} Kd7 {[%emt 0:00:21]} 37. Nxd8 {[%emt 0:00:08]} Kxd8 {[%emt 0:00:01]} 38. Ra3 {[%emt 0:00:11]} g5 {[%emt 0:00:39]} 39. Rxa7 {[%emt 0:00:46]} h5 {[%emt 0:00:31]} 40. a4 {[%emt 0:02:13]} g4+ {[%emt 0:00:21]} 41. hxg4 {[%emt 0:30:42]} fxg4+ {[%emt 0:30:07]} 42. Kg3 {[%emt 0:01:13]} h4+ {[%emt 0:00:00]} 43. Kxh4 {[%emt 0:00:00]} Rxg2 {[%emt 0:00:00]} 44. a5 {[%emt 0:00:00]} Rd2 {[%emt 0:00:00]} 45. Ra8+ {[%emt 0:00:00]} Kd7 {[%emt 0:00:00]} 46. a6 {[%emt 0:00:00]} Kc6 {[%emt 0:00:00]} 47. Rg8 {[%emt 0:00:00]} Kb6 {[%emt 0:00:00]} 48. Rxg4 {[%emt 0:04:05]} 1/2-1/2

[Event "Biel Master Tournament 2019"]
[Site "Biel"]
[Date "2019.07.29"]
[Round "7.11"]
[White "Harsha, Bharathakoti"]
[Black "Martirosyan, Haik M."]
[Result "0-1"]
[ECO "C01"]
[WhiteElo "2319"]
[BlackElo "2619"]
[Annotator "ChessBase"]
[PlyCount "62"]
[EventDate "2019.07.20"]
[EventType "swiss"]
[EventCountry "SUI"]
[SourceTitle "playchess.com"]
[Source "ChessBase"]
[SourceQuality "1"]
[TimeControl "40/5400+30:1800+30"]

1. e4 {[%emt 0:02:48]} e6 {[%emt 0:00:00]} 2. d4 {[%emt 0:00:08]} d5 {[%emt 0:00:00]} 3. Nc3 {[%emt 0:00:18]} Bb4 {[%emt 0:01:11]} 4. exd5 {[%emt 0:00:38]} exd5 {[%emt 0:00:32]} 5. Bd3 {[%emt 0:00:07]} Nf6 {[%emt 0:01:08]} 6. Nge2 {[%emt 0:00:37]} c6 {[%emt 0:00:41]} 7. O-O {[%emt 0:02:17]} O-O {[%emt 0:00:34]} 8. a3 {[%emt 0:04:38]} Be7 {[%emt 0:09:47]} 9. Bf4 {[%emt 0:22:18]} Nh5 {[%emt 0:08:49]} 10. Be3 {[%emt 0:22:06]} Bd6 {[%emt 0:02:27]} 11. Qd2 {[%emt 0:02:30]} Qc7 {[%emt 0:05:14]} 12. Ng3 {[%emt 0:01:38]} Nf4 {[%emt 0:01:07]} 13. Bf5 {[%emt 0:04:05]} Nd7 {[%emt 0:14:36]} 14. Nce2 {[%emt 0:05:32]} Nxe2+ {[%emt 0:01:23]} 15. Qxe2 {[%emt 0:00:07]} g6 {[%emt 0:12:59]} 16. Bd3 {[%emt 0:03:44]} f5 {[%emt 0:06:11]} 17. Bh6 {[%emt 0:03:55]} Rf7 {[%emt 0:01:26]} 18. Qe8+ {[%emt 0:14:00]} Nf8 {[%emt 0:01:10]} 19. f4 {[%emt 0:02:02]} Qb6 {[%emt 0:12:50]} 20. Ne2 {[%emt 0:01:02]} Rb8 {[%emt 0:00:10]} 21. Bxf8 {[%emt 0:00:41]} Rxf8 {[%emt 0:00:14]} 22. Qe3 {[%emt 0:00:06]} c5 {[%emt 0:00:38]} 23. c4 {[%emt 0:00:55]} cxd4 {[%emt 0:00:51]} 24. Qf3 {[%emt 0:01:25]} Be6 {[%emt 0:02:19]} 25. cxd5 {[%emt 0:00:13]} Bf7 {[%emt 0:00:06]} 26. Qf2 {[%emt 0:01:30]} Rfe8 {[%emt 0:03:23]} 27. Rfd1 {[%emt 0:01:41]} Qxb2 {[%emt 0:02:25]} 28. Rab1 {[%emt 0:01:03]} Qxa3 {[%emt 0:01:18]} 29. Nxd4 {[%emt 0:00:06]} Bc5 {[%emt 0:00:36]} 30. Kh1 {[%emt 0:00:21]} Bxd5 {[%emt 0:00:49]} 31. Bb5 {[%emt 0:01:21]} Re4 {[%emt 0:00:28]} 0-1